[Event "Titled Tuesday Blitz May 03 Early 2022"]
[White "Saksham, Rautela"]
[Black "Rom, Jasper"]
[WhiteFideId "35046977"]
[BlackFideId "2023733"]
[WhiteElo "1990"]
[BlackElo "2233"]
[Result "1-0"]
[Round "06"]
[TimeControl "180+1"]
[Date "2022.05.03"]
[WhiteClock "0:00:07"]
[BlackClock "0:00:01"]

1. c4 {[%clk 0:03:00]}  e6 {[%clk 0:02:59]} 2. g3 {[%clk 0:02:59]}  d5 {[%clk 0:02:58]} 3. Bg2 {[%clk 0:02:59]}  Nf6 {[%clk 0:02:58]} 4. Nf3 {[%clk 0:03:00]}  Be7 {[%clk 0:02:58]} 5. O-O {[%clk 0:03:00]}  O-O {[%clk 0:02:59]} 6. b3 {[%clk 0:02:59]}  b6 {[%clk 0:02:57]} 7. Bb2 {[%clk 0:02:59]}  Bb7 {[%clk 0:02:57]} 8. Nc3 {[%clk 0:02:53]}  Na6 {[%clk 0:02:54]} 9. e3 {[%clk 0:02:49]}  c5 {[%clk 0:02:53]} 10. cxd5 {[%clk 0:02:48]}  exd5 {[%clk 0:02:52]} 11. d4 {[%clk 0:02:49]}  Rc8 {[%clk 0:02:45]} 12. Rc1 {[%clk 0:02:43]}  Bd6 {[%clk 0:02:41]} 13. a3 {[%clk 0:02:39]}  Qe7 {[%clk 0:02:33]} 14. dxc5 {[%clk 0:02:26]}  bxc5 {[%clk 0:02:29]} 15. Qc2 {[%clk 0:02:18]}  Rfd8 {[%clk 0:02:21]} 16. Rfd1 {[%clk 0:02:15]}  Nc7 {[%clk 0:02:14]} 17. Rd2 {[%clk 0:01:56]}  Ne4 {[%clk 0:01:47]} 18. Nxe4 {[%clk 0:01:49]}  dxe4 {[%clk 0:01:48]} 19. Qc3 {[%clk 0:01:38]}  f6 {[%clk 0:01:36]} 20. Nh4 {[%clk 0:01:30]}  Qe6 {[%clk 0:01:28]} 21. Rcd1 {[%clk 0:01:19]}  Nd5 {[%clk 0:00:36]} 22. Qc4 {[%clk 0:01:08]}  g5 {[%clk 0:00:16]} 23. Bxe4 {[%clk 0:00:49]}  gxh4 {[%clk 0:00:07]} 24. Rxd5 {[%clk 0:00:49]}  Kf8 {[%clk 0:00:04]} 25. Rxd6 {[%clk 0:00:23]}  Rxd6 {[%clk 0:00:03]} 26. Qxe6 {[%clk 0:00:21]}  Rxe6 {[%clk 0:00:03]} 27. Bxb7 {[%clk 0:00:21]}  Rc7 {[%clk 0:00:03]} 28. Bf3 {[%clk 0:00:16]}  Ke7 {[%clk 0:00:03]} 29. Kg2 {[%clk 0:00:16]}  c4 {[%clk 0:00:02]} 30. bxc4 {[%clk 0:00:15]}  Rxc4 {[%clk 0:00:03]} 31. Bd5 {[%clk 0:00:16]}  Rd6 {[%clk 0:00:03]} 32. Bxc4 {[%clk 0:00:14]}  Rxd1 {[%clk 0:00:03]} 33. Bd4 {[%clk 0:00:14]}  Rd2 {[%clk 0:00:02]} 34. Bxa7 {[%clk 0:00:11]}  Kd6 {[%clk 0:00:01]} 35. gxh4 {[%clk 0:00:10]}  f5 {[%clk 0:00:01]} 36. Bd4 {[%clk 0:00:10]}  Ke7 {[%clk 0:00:01]} 37. Bb5 {[%clk 0:00:08]}  Kd6 {[%clk 0:00:01]} 38. a4 {[%clk 0:00:08]}  Ra2 {[%clk 0:00:01]} 39. Bc3 {[%clk 0:00:07]}  h5 {[%clk 0:00:01]} 40. Bb4+ {[%clk 0:00:07]}  Ke5 {[%clk 0:00:01]} 41. Bf8 {[%clk 0:00:07]}  Kf6 {[%clk 0:00:01]} 42. Bh6 {[%clk 0:00:07]}  Rb2 {[%clk 0:00:01]} 43. Bf4 {[%clk 0:00:06]}  Ke6 {[%clk 0:00:01]} 44. Bc4+ {[%clk 0:00:06]}  Kf6 {[%clk 0:00:01]} 45. a5 {[%clk 0:00:07]} 1-0


[Site "https://www.chess.com"]

[Event "Titled Tuesday Blitz May 03 Early 2022"]
[White "Saldano Dayer, Horacio"]
[Black "Bommini, Mounika Akshaya"]
[WhiteFideId "103411"]
[BlackFideId "25019872"]
[WhiteElo "2419"]
[BlackElo "1671"]
[Result "1-0"]
[Round "06"]
[TimeControl "180+1"]
[Date "2022.05.03"]
[WhiteClock "0:01:53"]
[BlackClock "0:01:49"]

1. d4 {[%clk 0:03:00]}  Nf6 {[%clk 0:02:58]} 2. Bg5 {[%clk 0:03:00]}  Ne4 {[%clk 0:02:57]} 3. h4 {[%clk 0:03:00]}  h6 {[%clk 0:02:55]} 4. Bf4 {[%clk 0:02:59]}  d5 {[%clk 0:02:51]} 5. e3 {[%clk 0:02:58]}  c5 {[%clk 0:02:48]} 6. Bd3 {[%clk 0:02:58]}  cxd4 {[%clk 0:02:48]} 7. Bxe4 {[%clk 0:02:58]}  dxe4 {[%clk 0:02:47]} 8. Qxd4 {[%clk 0:02:58]}  Qxd4 {[%clk 0:02:46]} 9. exd4 {[%clk 0:02:59]}  Nc6 {[%clk 0:02:45]} 10. Ne2 {[%clk 0:02:58]}  Bf5 {[%clk 0:02:43]} 11. Nbc3 {[%clk 0:02:56]}  Nb4 {[%clk 0:02:35]} 12. O-O-O {[%clk 0:02:33]}  Rc8 {[%clk 0:02:26]} 13. a3 {[%clk 0:02:15]}  Nc6 {[%clk 0:02:19]} 14. Ng3 {[%clk 0:02:13]}  Bh7 {[%clk 0:02:17]} 15. Ngxe4 {[%clk 0:02:09]}  e6 {[%clk 0:02:12]} 16. Rhe1 {[%clk 0:02:04]}  Rd8 {[%clk 0:02:02]} 17. d5 {[%clk 0:02:00]}  Ne7 {[%clk 0:01:49]} 18. Nd6+ {[%clk 0:01:53]} 1-0


[Site "https://www.chess.com"]

[Event "Titled Tuesday Blitz May 03 Early 2022"]
[White "Sanchez, Robert"]
[Black "Vlassov, Nikolai"]
[WhiteFideId "2034360"]
[BlackFideId "4103360"]
[WhiteElo "2447"]
[BlackElo "2407"]
[Result "0-1"]
[Round "06"]
[TimeControl "180+1"]
[Date "2022.05.03"]
[WhiteClock "0:00:05"]
[BlackClock "0:00:11"]

1. e4 {[%clk 0:03:00]}  Nc6 {[%clk 0:02:59]} 2. Nf3 {[%clk 0:03:00]}  d5 {[%clk 0:02:59]} 3. exd5 {[%clk 0:02:59]}  Qxd5 {[%clk 0:02:59]} 4. Nc3 {[%clk 0:02:59]}  Qa5 {[%clk 0:03:00]} 5. Bb5 {[%clk 0:02:57]}  Bd7 {[%clk 0:03:00]} 6. O-O {[%clk 0:02:53]}  a6 {[%clk 0:03:00]} 7. Bxc6 {[%clk 0:02:53]}  Bxc6 {[%clk 0:03:00]} 8. d4 {[%clk 0:02:54]}  e6 {[%clk 0:03:00]} 9. Ne5 {[%clk 0:02:54]}  Bd6 {[%clk 0:03:00]} 10. Nxc6 {[%clk 0:02:54]}  bxc6 {[%clk 0:03:00]} 11. Qf3 {[%clk 0:02:53]}  Ne7 {[%clk 0:03:01]} 12. Ne4 {[%clk 0:02:50]}  Qf5 {[%clk 0:02:57]} 13. Nxd6+ {[%clk 0:02:47]}  cxd6 {[%clk 0:02:57]} 14. Qg3 {[%clk 0:02:47]}  Qxc2 {[%clk 0:02:51]} 15. Qxd6 {[%clk 0:02:47]}  Rd8 {[%clk 0:02:47]} 16. Qa3 {[%clk 0:02:43]}  Rxd4 {[%clk 0:01:43]} 17. Be3 {[%clk 0:02:29]}  Rd7 {[%clk 0:01:16]} 18. Bc5 {[%clk 0:02:09]}  f6 {[%clk 0:01:08]} 19. Bxe7 {[%clk 0:01:42]}  Rxe7 {[%clk 0:01:07]} 20. Rac1 {[%clk 0:01:38]}  Qf5 {[%clk 0:00:48]} 21. Rxc6 {[%clk 0:01:36]}  Kf7 {[%clk 0:00:44]} 22. Rxa6 {[%clk 0:01:33]}  Rd8 {[%clk 0:00:40]} 23. Ra7 {[%clk 0:01:32]}  Rdd7 {[%clk 0:00:33]} 24. Rxd7 {[%clk 0:01:31]}  Rxd7 {[%clk 0:00:34]} 25. Qa4 {[%clk 0:01:26]}  Rd2 {[%clk 0:00:31]} 26. Qa7+ {[%clk 0:01:14]}  Kg6 {[%clk 0:00:30]} 27. a4 {[%clk 0:01:08]}  Rxb2 {[%clk 0:00:28]} 28. a5 {[%clk 0:01:08]}  Rb1 {[%clk 0:00:19]} 29. g3 {[%clk 0:01:03]}  Rb5 {[%clk 0:00:13]} 30. a6 {[%clk 0:01:01]}  Ra5 {[%clk 0:00:14]} 31. Qa8 {[%clk 0:00:58]}  h5 {[%clk 0:00:12]} 32. a7 {[%clk 0:00:55]}  Qd5 {[%clk 0:00:13]} 33. Qb8 {[%clk 0:00:31]}  h4 {[%clk 0:00:13]} 34. gxh4 {[%clk 0:00:24]}  Ra4 {[%clk 0:00:12]} 35. h3 {[%clk 0:00:13]}  Ra3 {[%clk 0:00:12]} 36. Kh2 {[%clk 0:00:09]}  Qf3 {[%clk 0:00:11]} 37. Qe8+ {[%clk 0:00:05]}  Kh7 {[%clk 0:00:11]} 0-1


[Site "https://www.chess.com"]

[Event "Titled Tuesday Blitz May 03 Early 2022"]
[White "Sarana, Alexey"]
[Black "Mikhailovsky, Vladimir"]
[WhiteFideId "24133795"]
[BlackFideId "34105414"]
[WhiteElo "2666"]
[BlackElo "2349"]
[Result "1-0"]
[Round "06"]
[TimeControl "180+1"]
[Date "2022.05.03"]
[WhiteClock "0:00:12"]
[BlackClock "0:00:01"]

1. d4 {[%clk 0:03:00]}  d5 {[%clk 0:02:54]} 2. c4 {[%clk 0:03:01]}  c6 {[%clk 0:02:55]} 3. Nc3 {[%clk 0:03:01]}  Nf6 {[%clk 0:02:55]} 4. Nf3 {[%clk 0:03:02]}  dxc4 {[%clk 0:02:55]} 5. a4 {[%clk 0:03:01]}  Bf5 {[%clk 0:02:53]} 6. Ne5 {[%clk 0:03:02]}  Nbd7 {[%clk 0:02:49]} 7. Nxc4 {[%clk 0:03:02]}  Nb6 {[%clk 0:02:49]} 8. Ne5 {[%clk 0:03:02]}  a5 {[%clk 0:02:49]} 9. f3 {[%clk 0:03:02]}  Nfd7 {[%clk 0:02:49]} 10. e4 {[%clk 0:03:03]}  Nxe5 {[%clk 0:02:39]} 11. dxe5 {[%clk 0:03:04]}  Qxd1+ {[%clk 0:02:39]} 12. Nxd1 {[%clk 0:03:04]}  Bg6 {[%clk 0:02:31]} 13. Nf2 {[%clk 0:02:32]}  e6 {[%clk 0:02:27]} 14. Nd3 {[%clk 0:02:30]}  f6 {[%clk 0:02:02]} 15. b3 {[%clk 0:02:19]}  Nd7 {[%clk 0:01:58]} 16. exf6 {[%clk 0:02:04]}  gxf6 {[%clk 0:01:57]} 17. Be3 {[%clk 0:02:04]}  e5 {[%clk 0:01:52]} 18. Kd2 {[%clk 0:01:58]}  O-O-O {[%clk 0:01:37]} 19. Rd1 {[%clk 0:01:44]}  b6 {[%clk 0:01:24]} 20. Kc2 {[%clk 0:01:38]}  Kb7 {[%clk 0:01:22]} 21. h4 {[%clk 0:01:27]}  h5 {[%clk 0:01:14]} 22. g3 {[%clk 0:01:26]}  Be7 {[%clk 0:01:11]} 23. Bh3 {[%clk 0:01:25]}  Nb8 {[%clk 0:01:05]} 24. Bf5 {[%clk 0:01:09]}  Bf7 {[%clk 0:01:05]} 25. g4 {[%clk 0:01:00]}  Na6 {[%clk 0:01:04]} 26. g5 {[%clk 0:00:59]}  Rxd3 {[%clk 0:00:37]} 27. Kxd3 {[%clk 0:00:56]}  Bxb3 {[%clk 0:00:37]} 28. Ra1 {[%clk 0:00:57]}  c5 {[%clk 0:00:21]} 29. Kc3 {[%clk 0:00:51]}  c4 {[%clk 0:00:21]} 30. gxf6 {[%clk 0:00:50]}  Bxf6 {[%clk 0:00:18]} 31. Be6 {[%clk 0:00:38]}  Nb4 {[%clk 0:00:13]} 32. Rag1 {[%clk 0:00:27]}  Rd8 {[%clk 0:00:12]} 33. Bxc4 {[%clk 0:00:27]}  Bxa4 {[%clk 0:00:04]} 34. Rg6 {[%clk 0:00:26]}  Be7 {[%clk 0:00:04]} 35. Rxb6+ {[%clk 0:00:26]}  Kc7 {[%clk 0:00:03]} 36. Re6 {[%clk 0:00:14]}  Re8 {[%clk 0:00:03]} 37. Ra1 {[%clk 0:00:13]}  Bd7 {[%clk 0:00:03]} 38. Rh6 {[%clk 0:00:13]}  Nc6 {[%clk 0:00:03]} 39. Bd5 {[%clk 0:00:12]}  Bb4+ {[%clk 0:00:04]} 40. Kc4 {[%clk 0:00:12]}  Rc8 {[%clk 0:00:04]} 41. Rc1 {[%clk 0:00:10]}  Kb8 {[%clk 0:00:03]} 42. Kd3 {[%clk 0:00:10]}  Ne7 {[%clk 0:00:02]} 43. Rxc8+ {[%clk 0:00:10]}  Nxc8 {[%clk 0:00:03]} 44. Rxh5 {[%clk 0:00:11]}  Nd6 {[%clk 0:00:02]} 45. Rh8+ {[%clk 0:00:11]}  Kc7 {[%clk 0:00:03]} 46. h5 {[%clk 0:00:11]}  Bb5+ {[%clk 0:00:03]} 47. Kc2 {[%clk 0:00:12]}  a4 {[%clk 0:00:03]} 48. h6 {[%clk 0:00:12]}  a3 {[%clk 0:00:04]} 49. h7 {[%clk 0:00:12]}  Ba4+ {[%clk 0:00:04]} 50. Kc1 {[%clk 0:00:12]}  Bc3 {[%clk 0:00:02]} 51. Ra8 {[%clk 0:00:12]}  a2 {[%clk 0:00:02]} 52. Rxa4 {[%clk 0:00:11]}  a1=Q+ {[%clk 0:00:01]} 53. Rxa1 {[%clk 0:00:11]}  Bxa1 {[%clk 0:00:01]} 54. h8=Q {[%clk 0:00:12]} 1-0


[Site "https://www.chess.com"]

[Event "Titled Tuesday Blitz May 03 Early 2022"]
[White "Saravana, Krishnan P."]
[Black "Itkis, Boris"]
[WhiteFideId "5018382"]
[BlackFideId "1209167"]
[WhiteElo "2210"]
[BlackElo "2207"]
[Result "1-0"]
[Round "06"]
[TimeControl "180+1"]
[Date "2022.05.03"]
[WhiteClock "0:02:07"]
[BlackClock "0:00:37"]

1. d4 {[%clk 0:03:00]}  Nf6 {[%clk 0:02:59]} 2. c4 {[%clk 0:03:00]}  Nc6 {[%clk 0:03:00]} 3. Nf3 {[%clk 0:03:00]}  e6 {[%clk 0:03:00]} 4. a3 {[%clk 0:02:59]}  d6 {[%clk 0:03:00]} 5. Nc3 {[%clk 0:02:59]}  g6 {[%clk 0:03:00]} 6. e4 {[%clk 0:02:54]}  Bg7 {[%clk 0:03:00]} 7. Be2 {[%clk 0:02:54]}  O-O {[%clk 0:03:00]} 8. O-O {[%clk 0:02:54]}  e5 {[%clk 0:03:01]} 9. dxe5 {[%clk 0:02:51]}  Nxe5 {[%clk 0:02:57]} 10. Bg5 {[%clk 0:02:47]}  Be6 {[%clk 0:02:44]} 11. Nd5 {[%clk 0:02:45]}  Bxd5 {[%clk 0:02:36]} 12. exd5 {[%clk 0:02:42]}  Qd7 {[%clk 0:02:27]} 13. Nxe5 {[%clk 0:02:40]}  dxe5 {[%clk 0:02:27]} 14. Qc2 {[%clk 0:02:40]}  h6 {[%clk 0:02:21]} 15. Be3 {[%clk 0:02:39]}  b6 {[%clk 0:02:15]} 16. h3 {[%clk 0:02:38]}  Nh7 {[%clk 0:02:04]} 17. Rfd1 {[%clk 0:02:37]}  f5 {[%clk 0:02:04]} 18. c5 {[%clk 0:02:26]}  bxc5 {[%clk 0:01:57]} 19. Bxc5 {[%clk 0:02:25]}  Rfd8 {[%clk 0:01:53]} 20. d6 {[%clk 0:02:25]}  cxd6 {[%clk 0:01:43]} 21. Rxd6 {[%clk 0:02:25]}  Qe8 {[%clk 0:01:44]} 22. Bc4+ {[%clk 0:02:24]}  Kh8 {[%clk 0:01:43]} 23. Re6 {[%clk 0:02:24]}  Qf7 {[%clk 0:01:04]} 24. Re1 {[%clk 0:02:21]}  Rac8 {[%clk 0:00:59]} 25. b4 {[%clk 0:02:20]}  Nf8 {[%clk 0:00:46]} 26. R6xe5 {[%clk 0:02:17]}  Qb7 {[%clk 0:00:43]} 27. Re7 {[%clk 0:02:16]}  Qc6 {[%clk 0:00:43]} 28. Rxg7 {[%clk 0:02:09]}  Kxg7 {[%clk 0:00:42]} 29. Qb2+ {[%clk 0:02:09]}  Kh7 {[%clk 0:00:37]} 30. Re7# {[%clk 0:02:07]} 1-0


[Site "https://www.chess.com"]

[Event "Titled Tuesday Blitz May 03 Early 2022"]
[White "Shyaamnikhil P"]
[Black "Tan, Jun Ying"]
[WhiteFideId "5024218"]
[BlackFideId "5710413"]
[WhiteElo "2329"]
[BlackElo "1827"]
[Result "1/2-1/2"]
[Round "06"]
[TimeControl "180+1"]
[Date "2022.05.03"]
[WhiteClock "0:00:15"]
[BlackClock "0:00:20"]

1. e4 {[%clk 0:03:00]}  c5 {[%clk 0:02:59]} 2. Nf3 {[%clk 0:03:00]}  Nc6 {[%clk 0:03:00]} 3. d4 {[%clk 0:03:00]}  cxd4 {[%clk 0:03:01]} 4. Nxd4 {[%clk 0:03:01]}  Nf6 {[%clk 0:03:01]} 5. Nc3 {[%clk 0:03:02]}  d6 {[%clk 0:03:02]} 6. Bg5 {[%clk 0:03:00]}  e6 {[%clk 0:03:02]} 7. Qd2 {[%clk 0:02:58]}  a6 {[%clk 0:03:02]} 8. O-O-O {[%clk 0:02:57]}  h6 {[%clk 0:03:03]} 9. Nxc6 {[%clk 0:02:55]}  bxc6 {[%clk 0:03:04]} 10. Bf4 {[%clk 0:02:55]}  d5 {[%clk 0:03:04]} 11. Qe3 {[%clk 0:02:56]}  Bb4 {[%clk 0:03:04]} 12. a3 {[%clk 0:02:51]}  Ba5 {[%clk 0:03:03]} 13. Qg3 {[%clk 0:02:37]}  Nh5 {[%clk 0:02:52]} 14. Qf3 {[%clk 0:02:28]}  Nxf4 {[%clk 0:02:51]} 15. Qxf4 {[%clk 0:02:29]}  Bxc3 {[%clk 0:02:47]} 16. bxc3 {[%clk 0:02:30]}  Qg5 {[%clk 0:02:47]} 17. Qxg5 {[%clk 0:02:26]}  hxg5 {[%clk 0:02:48]} 18. exd5 {[%clk 0:02:25]}  cxd5 {[%clk 0:02:48]} 19. c4 {[%clk 0:02:25]}  Bb7 {[%clk 0:02:46]} 20. cxd5 {[%clk 0:02:23]}  Bxd5 {[%clk 0:02:47]} 21. f3 {[%clk 0:02:21]}  Ke7 {[%clk 0:02:43]} 22. h3 {[%clk 0:02:20]}  a5 {[%clk 0:02:35]} 23. Rd4 {[%clk 0:02:16]}  Rac8 {[%clk 0:02:33]} 24. Bd3 {[%clk 0:02:15]}  Rh4 {[%clk 0:02:19]} 25. Rxh4 {[%clk 0:02:08]}  gxh4 {[%clk 0:02:20]} 26. Kd2 {[%clk 0:02:08]}  g5 {[%clk 0:02:19]} 27. Rb1 {[%clk 0:02:07]}  Rc5 {[%clk 0:02:13]} 28. c4 {[%clk 0:01:55]}  Bc6 {[%clk 0:02:08]} 29. Rb8 {[%clk 0:01:52]}  Kd6 {[%clk 0:01:54]} 30. Rf8 {[%clk 0:01:34]}  Ke7 {[%clk 0:01:51]} 31. Rg8 {[%clk 0:01:33]}  Bb7 {[%clk 0:01:42]} 32. Kc3 {[%clk 0:01:26]}  Kd6 {[%clk 0:01:16]} 33. Kd4 {[%clk 0:01:18]}  e5+ {[%clk 0:01:13]} 34. Kc3 {[%clk 0:01:16]}  f6 {[%clk 0:01:12]} 35. Rb8 {[%clk 0:01:08]}  Bc6 {[%clk 0:01:05]} 36. Be4 {[%clk 0:01:02]}  Bxe4 {[%clk 0:00:55]} 37. fxe4 {[%clk 0:01:03]}  Kc7 {[%clk 0:00:52]} 38. Ra8 {[%clk 0:00:57]}  Kb6 {[%clk 0:00:48]} 39. Rd8 {[%clk 0:00:53]}  Rc6 {[%clk 0:00:45]} 40. Rd5 {[%clk 0:00:50]}  Ka6 {[%clk 0:00:43]} 41. a4 {[%clk 0:00:43]}  Rb6 {[%clk 0:00:42]} 42. c5 {[%clk 0:00:28]}  Rb4 {[%clk 0:00:41]} 43. Rd6+ {[%clk 0:00:28]}  Kb7 {[%clk 0:00:41]} 44. Rxf6 {[%clk 0:00:26]}  Rxe4 {[%clk 0:00:39]} 45. Rf5 {[%clk 0:00:25]}  g4 {[%clk 0:00:36]} 46. hxg4 {[%clk 0:00:21]}  Rxg4 {[%clk 0:00:37]} 47. Rxe5 {[%clk 0:00:21]}  Rxa4 {[%clk 0:00:36]} 48. Re6 {[%clk 0:00:19]}  Rg4 {[%clk 0:00:35]} 49. Rh6 {[%clk 0:00:18]}  a4 {[%clk 0:00:33]} 50. Rb6+ {[%clk 0:00:18]}  Kc7 {[%clk 0:00:33]} 51. Ra6 {[%clk 0:00:18]}  Rxg2 {[%clk 0:00:30]} 52. Rxa4 {[%clk 0:00:18]}  h3 {[%clk 0:00:28]} 53. Rh4 {[%clk 0:00:18]}  Kc6 {[%clk 0:00:23]} 54. Rxh3 {[%clk 0:00:16]}  Kxc5 {[%clk 0:00:23]} 55. Rh5+ {[%clk 0:00:16]}  Kd6 {[%clk 0:00:21]} 56. Rh6+ {[%clk 0:00:16]}  Ke5 {[%clk 0:00:21]} 57. Rh5+ {[%clk 0:00:15]}  Kf4 {[%clk 0:00:20]} 58. Rh4+ {[%clk 0:00:15]}  Kg5 {[%clk 0:00:19]} 59. Rd4 {[%clk 0:00:15]}  Rg4 {[%clk 0:00:19]} 60. Rxg4+ {[%clk 0:00:15]}  Kxg4 {[%clk 0:00:20]} 1/2-1/2


[Site "https://www.chess.com"]

[Event "Titled Tuesday Blitz May 03 Early 2022"]
[White "Sokolovsky, Yahli"]
[Black "Menna Barreto, Felipe Kubiaki"]
[WhiteFideId "2820242"]
[BlackFideId "2119757"]
[WhiteElo "1770"]
[BlackElo "2261"]
[Result "1-0"]
[Round "06"]
[TimeControl "180+1"]
[Date "2022.05.03"]
[WhiteClock "0:00:24"]
[BlackClock "0:00:13"]

1. b3 {[%clk 0:03:00]}  d6 {[%clk 0:02:58]} 2. Bb2 {[%clk 0:03:01]}  e5 {[%clk 0:02:58]} 3. e3 {[%clk 0:03:01]}  Nf6 {[%clk 0:02:58]} 4. d4 {[%clk 0:03:02]}  exd4 {[%clk 0:02:58]} 5. exd4 {[%clk 0:03:03]}  d5 {[%clk 0:02:59]} 6. Nf3 {[%clk 0:03:03]}  Bb4+ {[%clk 0:02:58]} 7. c3 {[%clk 0:03:03]}  Bd6 {[%clk 0:02:58]} 8. Bd3 {[%clk 0:03:03]}  O-O {[%clk 0:02:58]} 9. O-O {[%clk 0:03:04]}  Bg4 {[%clk 0:02:58]} 10. Nbd2 {[%clk 0:03:02]}  Nbd7 {[%clk 0:02:57]} 11. c4 {[%clk 0:03:01]}  c6 {[%clk 0:02:50]} 12. Qc2 {[%clk 0:03:00]}  Re8 {[%clk 0:02:39]} 13. h3 {[%clk 0:03:00]}  Bh5 {[%clk 0:02:39]} 14. Rfe1 {[%clk 0:02:59]}  Qc7 {[%clk 0:02:38]} 15. cxd5 {[%clk 0:02:46]}  cxd5 {[%clk 0:02:36]} 16. Qxc7 {[%clk 0:02:46]}  Bxc7 {[%clk 0:02:37]} 17. Ne5 {[%clk 0:02:47]}  Bd6 {[%clk 0:02:28]} 18. g4 {[%clk 0:02:33]}  Bg6 {[%clk 0:02:27]} 19. Bb5 {[%clk 0:01:55]}  Bb4 {[%clk 0:01:40]} 20. Re2 {[%clk 0:01:29]}  Bxd2 {[%clk 0:01:33]} 21. Rxd2 {[%clk 0:01:30]}  Red8 {[%clk 0:01:27]} 22. f3 {[%clk 0:01:26]}  a6 {[%clk 0:01:27]} 23. Bf1 {[%clk 0:01:14]}  Rac8 {[%clk 0:01:17]} 24. Nxg6 {[%clk 0:01:13]}  hxg6 {[%clk 0:01:17]} 25. Re1 {[%clk 0:01:13]}  Re8 {[%clk 0:01:13]} 26. Rde2 {[%clk 0:01:14]}  Rxe2 {[%clk 0:01:04]} 27. Rxe2 {[%clk 0:01:15]}  Re8 {[%clk 0:01:03]} 28. Kf2 {[%clk 0:01:10]}  Rxe2+ {[%clk 0:01:01]} 29. Kxe2 {[%clk 0:01:09]}  Kf8 {[%clk 0:00:59]} 30. Ba3+ {[%clk 0:01:09]}  Ke8 {[%clk 0:00:59]} 31. Ke3 {[%clk 0:01:09]}  g5 {[%clk 0:00:59]} 32. Kd3 {[%clk 0:01:06]}  Nb8 {[%clk 0:00:56]} 33. Kc3 {[%clk 0:01:04]}  Nc6 {[%clk 0:00:56]} 34. Bd3 {[%clk 0:01:04]}  Nd7 {[%clk 0:00:50]} 35. Bc1 {[%clk 0:00:59]}  f6 {[%clk 0:00:47]} 36. f4 {[%clk 0:00:58]}  gxf4 {[%clk 0:00:46]} 37. Bxf4 {[%clk 0:00:59]}  g5 {[%clk 0:00:45]} 38. Bg3 {[%clk 0:00:59]}  Nf8 {[%clk 0:00:45]} 39. Bf5 {[%clk 0:00:59]}  Ke7 {[%clk 0:00:44]} 40. Bc8 {[%clk 0:00:51]}  b5 {[%clk 0:00:27]} 41. Bxa6 {[%clk 0:00:36]}  b4+ {[%clk 0:00:27]} 42. Kd3 {[%clk 0:00:37]}  Ne6 {[%clk 0:00:28]} 43. Bb7 {[%clk 0:00:37]}  Ncxd4 {[%clk 0:00:26]} 44. Bxd5 {[%clk 0:00:38]}  Nb5 {[%clk 0:00:25]} 45. Bxe6 {[%clk 0:00:36]}  Kxe6 {[%clk 0:00:25]} 46. Be1 {[%clk 0:00:37]}  f5 {[%clk 0:00:20]} 47. gxf5+ {[%clk 0:00:30]}  Kxf5 {[%clk 0:00:21]} 48. Bxb4 {[%clk 0:00:31]}  Nc7 {[%clk 0:00:20]} 49. a4 {[%clk 0:00:29]}  Nd5 {[%clk 0:00:20]} 50. Bd2 {[%clk 0:00:29]}  g4 {[%clk 0:00:17]} 51. hxg4+ {[%clk 0:00:29]}  Kxg4 {[%clk 0:00:18]} 52. Kd4 {[%clk 0:00:30]}  Nc7 {[%clk 0:00:17]} 53. b4 {[%clk 0:00:27]}  Kf5 {[%clk 0:00:17]} 54. Kc5 {[%clk 0:00:27]}  Ke6 {[%clk 0:00:18]} 55. Kc6 {[%clk 0:00:28]}  Nd5 {[%clk 0:00:18]} 56. b5 {[%clk 0:00:27]}  Ne7+ {[%clk 0:00:18]} 57. Kc7 {[%clk 0:00:25]}  Nd5+ {[%clk 0:00:18]} 58. Kb7 {[%clk 0:00:26]}  Kd7 {[%clk 0:00:18]} 59. a5 {[%clk 0:00:26]}  Nc7 {[%clk 0:00:17]} 60. b6 {[%clk 0:00:26]}  Nb5 {[%clk 0:00:18]} 61. Bf4 {[%clk 0:00:23]}  Nd4 {[%clk 0:00:17]} 62. a6 {[%clk 0:00:23]}  Nb5 {[%clk 0:00:17]} 63. a7 {[%clk 0:00:22]}  Na3 {[%clk 0:00:15]} 64. a8=Q {[%clk 0:00:21]}  Nc4 {[%clk 0:00:15]} 65. Qc8+ {[%clk 0:00:22]}  Ke7 {[%clk 0:00:15]} 66. Qxc4 {[%clk 0:00:22]}  Ke8 {[%clk 0:00:14]} 67. Qc7 {[%clk 0:00:22]}  Kf8 {[%clk 0:00:15]} 68. Bh6+ {[%clk 0:00:22]}  Ke8 {[%clk 0:00:14]} 69. Qg7 {[%clk 0:00:22]}  Kd8 {[%clk 0:00:14]} 70. Bg5+ {[%clk 0:00:23]}  Ke8 {[%clk 0:00:13]} 71. Qe7# {[%clk 0:00:24]} 1-0


[Site "https://www.chess.com"]

[Event "Titled Tuesday Blitz May 03 Early 2022"]
[White "Souleidis, Georgios"]
[Black "Sebag, Marie"]
[WhiteFideId "4206827"]
[BlackFideId "617822"]
[WhiteElo "2401"]
[BlackElo "2440"]
[Result "0-1"]
[Round "06"]
[TimeControl "180+1"]
[Date "2022.05.03"]
[WhiteClock "0:00:07"]
[BlackClock "0:00:15"]

1. e4 {[%clk 0:03:00]}  c5 {[%clk 0:02:57]} 2. Nf3 {[%clk 0:02:59]}  d6 {[%clk 0:02:58]} 3. Bc4 {[%clk 0:02:59]}  Nc6 {[%clk 0:02:55]} 4. O-O {[%clk 0:02:58]}  Nf6 {[%clk 0:02:55]} 5. Re1 {[%clk 0:02:58]}  Bg4 {[%clk 0:02:55]} 6. h3 {[%clk 0:02:56]}  Bxf3 {[%clk 0:02:55]} 7. Qxf3 {[%clk 0:02:57]}  g6 {[%clk 0:02:55]} 8. c3 {[%clk 0:02:56]}  Bg7 {[%clk 0:02:54]} 9. d3 {[%clk 0:02:56]}  O-O {[%clk 0:02:53]} 10. Bb3 {[%clk 0:02:55]}  b5 {[%clk 0:02:53]} 11. Be3 {[%clk 0:02:53]}  Nd7 {[%clk 0:02:48]} 12. Qe2 {[%clk 0:02:41]}  b4 {[%clk 0:02:46]} 13. Rd1 {[%clk 0:02:20]}  Qb6 {[%clk 0:02:41]} 14. cxb4 {[%clk 0:02:05]}  Qxb4 {[%clk 0:02:36]} 15. Nc3 {[%clk 0:02:03]}  e6 {[%clk 0:02:28]} 16. Rac1 {[%clk 0:01:25]}  Rab8 {[%clk 0:02:20]} 17. f4 {[%clk 0:01:15]}  Na5 {[%clk 0:02:02]} 18. Ba4 {[%clk 0:00:57]}  Bxc3 {[%clk 0:01:49]} 19. Bxd7 {[%clk 0:00:54]}  Bxb2 {[%clk 0:01:26]} 20. Rb1 {[%clk 0:00:46]}  Qa3 {[%clk 0:01:22]} 21. f5 {[%clk 0:00:41]}  exf5 {[%clk 0:01:19]} 22. exf5 {[%clk 0:00:38]}  Rfd8 {[%clk 0:01:18]} 23. Rd2 {[%clk 0:00:28]}  Be5 {[%clk 0:01:10]} 24. Rxb8 {[%clk 0:00:26]}  Rxb8 {[%clk 0:01:10]} 25. fxg6 {[%clk 0:00:26]}  hxg6 {[%clk 0:01:09]} 26. Rd1 {[%clk 0:00:14]}  Rb2 {[%clk 0:00:41]} 27. Qf3 {[%clk 0:00:14]}  Qxa2 {[%clk 0:00:41]} 28. Rf1 {[%clk 0:00:14]}  Rb1 {[%clk 0:00:37]} 29. Bg5 {[%clk 0:00:10]}  Rxf1+ {[%clk 0:00:32]} 30. Qxf1 {[%clk 0:00:11]}  Nb3 {[%clk 0:00:27]} 31. h4 {[%clk 0:00:09]}  Qa1 {[%clk 0:00:21]} 32. Qxa1 {[%clk 0:00:09]}  Bxa1 {[%clk 0:00:21]} 33. Kf2 {[%clk 0:00:07]}  Nd4 {[%clk 0:00:17]} 34. Be7 {[%clk 0:00:07]}  Nf5 {[%clk 0:00:14]} 35. Bxf5 {[%clk 0:00:07]}  gxf5 {[%clk 0:00:14]} 36. Bxd6 {[%clk 0:00:08]}  Bd4+ {[%clk 0:00:15]} 37. Kf3 {[%clk 0:00:07]}  a5 {[%clk 0:00:15]} 0-1


[Site "https://www.chess.com"]